[Event "Live Chess"]
[Site "Chess.com"]
[Date "2023.05.21"]
[Round "-"]
[White "Biranidun"]
[Black "Ferrarifan27"]
[Result "1-0"]
[WhiteElo "2526"]
[BlackElo "2050"]
[TimeControl "300"]
[EndTime "8:58:08 PDT"]
[Termination "Biranidun won by resignation"]

1. e4 {[%clk 0:04:59.1]} 1... e5 {[%clk 0:04:58.8]} 2. Nf3 {[%clk 0:04:58.5]}
2... Nc6 {[%clk 0:04:58]} 3. Bc4 {[%clk 0:04:58]} 3... Bc5 {[%clk 0:04:56.5]} 4.
c3 {[%clk 0:04:57.1]} 4... Nf6 {[%clk 0:04:55.1]} 5. d4 {[%clk 0:04:56.8]} 5...
exd4 {[%clk 0:04:54.5]} 6. b4 {[%clk 0:04:56.4]} 6... Bd6 {[%clk 0:04:46.5]} 7.
O-O {[%clk 0:04:49.8]} 7... O-O {[%clk 0:04:40]} 8. Re1 {[%clk 0:04:48.2]} 8...
Ng4 {[%clk 0:04:27.3]} 9. cxd4 {[%clk 0:04:45.1]} 9... Bxb4 {[%clk 0:04:25.3]}
10. Re2 {[%clk 0:04:39.5]} 10... d6 {[%clk 0:04:17.1]} 11. Bg5 {[%clk
0:04:38.3]} 11... Qe8 {[%clk 0:04:13.8]} 12. h3 {[%clk 0:04:36.5]} 12... Nf6
{[%clk 0:04:08.4]} 13. Bxf6 {[%clk 0:04:35.6]} 13... gxf6 {[%clk 0:04:08.3]} 14.
Qb3 {[%clk 0:04:34.7]} 14... Ba5 {[%clk 0:04:04]} 15. Nc3 {[%clk 0:04:33.9]}
15... Bb6 {[%clk 0:04:02.4]} 16. Nd5 {[%clk 0:04:32]} 16... Na5 {[%clk
0:04:01.5]} 17. Nxf6+ {[%clk 0:04:31.2]} 17... Kg7 {[%clk 0:04:00.1]} 18. Nxe8+
{[%clk 0:04:30.4]} 1-0

[Event "Live Chess"]
[Site "Chess.com"]
[Date "2023.05.21"]
[Round "-"]
[White "1600x"]
[Black "ConorMaclaud"]
[Result "1-0"]
[WhiteElo "1948"]
[BlackElo "2105"]
[TimeControl "300"]
[EndTime "8:58:13 PDT"]
[Termination "1600x won by resignation"]

1. e4 {[%clk 0:04:51.3]} 1... c6 {[%clk 0:04:59.9]} 2. Nf3 {[%clk 0:04:50.1]}
2... d5 {[%clk 0:04:59.8]} 3. Bd3 {[%clk 0:04:48.1]} 3... dxe4 {[%clk
0:04:58.9]} 4. Bxe4 {[%clk 0:04:47.1]} 4... Nf6 {[%clk 0:04:58.8]} 5. d3 {[%clk
0:04:43.9]} 5... Bg4 {[%clk 0:04:47.2]} 6. h4 {[%clk 0:04:42.2]} 6... e6 {[%clk
0:04:39.1]} 7. O-O {[%clk 0:04:39]} 7... Bd6 {[%clk 0:04:36.8]} 8. Nbd2 {[%clk
0:04:37.6]} 8... Bc7 {[%clk 0:04:32.9]} 9. Nc4 {[%clk 0:04:34.5]} 9... Nxe4
{[%clk 0:04:27.2]} 10. dxe4 {[%clk 0:04:33.2]} 10... Qf6 {[%clk 0:04:11.2]} 11.
Bg5 {[%clk 0:04:27.4]} 11... Bxf3 {[%clk 0:04:07.4]} 12. gxf3 {[%clk 0:04:24.4]}
12... Qg6 {[%clk 0:04:01.9]} 13. Kh1 {[%clk 0:04:15.9]} 13... O-O {[%clk
0:03:49.6]} 14. Be7 {[%clk 0:04:13.9]} 14... Qh5 {[%clk 0:03:39.9]} 15. f4
{[%clk 0:04:12.6]} 15... Qxd1 {[%clk 0:03:34.8]} 16. Raxd1 {[%clk 0:04:10.6]}
16... Re8 {[%clk 0:03:33.1]} 17. Bd6 {[%clk 0:04:08.5]} 17... Bd8 {[%clk
0:03:26.4]} 18. h5 {[%clk 0:04:06.5]} 18... Na6 {[%clk 0:03:21.5]} 19. Kg2
{[%clk 0:04:05]} 19... Nc7 {[%clk 0:03:20.6]} 20. Be5 {[%clk 0:04:03.2]} 20...
Na6 {[%clk 0:03:00.1]} 21. h6 {[%clk 0:04:00.8]} 21... f6 {[%clk 0:02:58.3]} 22.
Nd6 {[%clk 0:03:59.4]} 22... Re7 {[%clk 0:02:51.8]} 23. Bc3 {[%clk 0:03:57.9]}
23... gxh6 {[%clk 0:02:40.4]} 24. Rh1 {[%clk 0:03:55.5]} 24... Rg7+ {[%clk
0:02:31.7]} 25. Kf3 {[%clk 0:03:54]} 25... Bb6 {[%clk 0:02:23.2]} 26. Rxh6
{[%clk 0:03:52.2]} 26... Rg6 {[%clk 0:02:20.9]} 27. Rxg6+ {[%clk 0:03:51.3]}
27... hxg6 {[%clk 0:02:20.7]} 28. Bxf6 {[%clk 0:03:49.2]} 28... Bc5 {[%clk
0:02:10.1]} 29. Nxb7 {[%clk 0:03:47.6]} 29... Rb8 {[%clk 0:02:07]} 30. Nd8
{[%clk 0:03:46.5]} 30... Bb6 {[%clk 0:02:00.4]} 31. Nxc6 {[%clk 0:03:44.7]}
31... Rc8 {[%clk 0:01:58.4]} 32. Ne7+ {[%clk 0:03:43.4]} 1-0

[Event "Live Chess"]
[Site "Chess.com"]
[Date "2023.05.21"]
[Round "-"]
[White "PiotrD11"]
[Black "zdanevych"]
[Result "1-0"]
[WhiteElo "1389"]
[BlackElo "1459"]
[TimeControl "300"]
[EndTime "8:58:21 PDT"]
[Termination "PiotrD11 won by resignation"]

1. e4 {[%clk 0:04:59.3]} 1... d5 {[%clk 0:04:59.2]} 2. exd5 {[%clk 0:04:57.8]}
2... c6 {[%clk 0:04:58.8]} 3. dxc6 {[%clk 0:04:56.5]} 3... Nxc6 {[%clk
0:04:58.7]} 4. Nc3 {[%clk 0:04:54.9]} 4... a6 {[%clk 0:04:58.3]} 5. d3 {[%clk
0:04:53.9]} 5... e6 {[%clk 0:04:57.8]} 6. Be2 {[%clk 0:04:52.6]} 6... Nf6 {[%clk
0:04:57.4]} 7. Nf3 {[%clk 0:04:52.2]} 7... h6 {[%clk 0:04:57]} 8. O-O {[%clk
0:04:51.7]} 8... Bd6 {[%clk 0:04:56.6]} 9. Be3 {[%clk 0:04:47]} 9... b5 {[%clk
0:04:55.5]} 10. a3 {[%clk 0:04:45.4]} 10... Bb7 {[%clk 0:04:54.6]} 11. h3 {[%clk
0:04:40.2]} 11... O-O {[%clk 0:04:54.1]} 12. Qd2 {[%clk 0:04:38.6]} 12... Kh7
{[%clk 0:04:51.4]} 13. Rad1 {[%clk 0:04:37.3]} 13... Rc8 {[%clk 0:04:47.4]} 14.
Rfe1 {[%clk 0:04:35.3]} 14... Bb8 {[%clk 0:04:45.7]} 15. Bf4 {[%clk 0:04:31.5]}
15... Bxf4 {[%clk 0:04:38.2]} 16. Qxf4 {[%clk 0:04:31]} 16... Nd5 {[%clk
0:04:34.8]} 17. Nxd5 {[%clk 0:04:23.8]} 17... Qxd5 {[%clk 0:04:34.7]} 18. c4
{[%clk 0:04:06.4]} 18... bxc4 {[%clk 0:04:14.3]} 19. dxc4 {[%clk 0:04:05.8]}
19... Qf5 {[%clk 0:04:13.3]} 20. Bd3 {[%clk 0:04:02.2]} 20... Qxd3 {[%clk
0:04:00.8]} 21. Rxd3 {[%clk 0:03:59.8]} 1-0

[Event "Live Chess"]
[Site "Chess.com"]
[Date "2023.05.21"]
[Round "-"]
[White "youtookmyhorse"]
[Black "slava_ukr"]
[Result "0-1"]
[WhiteElo "784"]
[BlackElo "2347"]
[TimeControl "300"]
[EndTime "8:58:40 PDT"]
[Termination "slava_ukr won by checkmate"]

1. e4 {[%clk 0:04:54.4]} 1... e5 {[%clk 0:04:59.3]} 2. Nc3 {[%clk 0:04:53.1]}
2... Nf6 {[%clk 0:04:57.1]} 3. f4 {[%clk 0:04:51.2]} 3... d5 {[%clk 0:04:55.1]}
4. exd5 {[%clk 0:04:48.6]} 4... exf4 {[%clk 0:04:49.2]} 5. Nf3 {[%clk
0:04:44.7]} 5... Nxd5 {[%clk 0:04:47.8]} 6. d3 {[%clk 0:04:42.9]} 6... Nxc3
{[%clk 0:04:39.7]} 7. bxc3 {[%clk 0:04:41.5]} 7... Bd6 {[%clk 0:04:38.8]} 8. Be2
{[%clk 0:04:26.5]} 8... O-O {[%clk 0:04:36.3]} 9. O-O {[%clk 0:04:25]} 9... Nc6
{[%clk 0:04:29.8]} 10. Bd2 {[%clk 0:04:10.4]} 10... h6 {[%clk 0:04:21.7]} 11.
Qc1 {[%clk 0:04:08.8]} 11... g5 {[%clk 0:04:19.6]} 12. Nd4 {[%clk 0:04:01.7]}
12... Bc5 {[%clk 0:04:13.6]} 13. Kh1 {[%clk 0:03:57.8]} 13... Nxd4 {[%clk
0:04:11.4]} 14. cxd4 {[%clk 0:03:55.2]} 14... Bxd4 {[%clk 0:04:03]} 15. Rb1
{[%clk 0:03:54.8]} 15... Be6 {[%clk 0:03:48.9]} 16. Bxf4 {[%clk 0:03:47]} 16...
gxf4 {[%clk 0:03:47.3]} 17. Qxf4 {[%clk 0:03:45.3]} 17... Bg7 {[%clk 0:03:42.9]}
18. Rxb7 {[%clk 0:03:31.2]} 18... Qd6 {[%clk 0:03:36.7]} 19. Qxd6 {[%clk
0:03:28]} 19... cxd6 {[%clk 0:03:35.3]} 20. a4 {[%clk 0:03:13.8]} 20... a5
{[%clk 0:03:30]} 21. Rb5 {[%clk 0:03:00.6]} 21... Bd7 {[%clk 0:03:26.9]} 22. Rh5
{[%clk 0:02:54.9]} 22... Bxa4 {[%clk 0:03:25.2]} 23. c4 {[%clk 0:02:53.9]} 23...
Bb3 {[%clk 0:03:22.3]} 24. h3 {[%clk 0:02:51.6]} 24... a4 {[%clk 0:03:21.1]} 25.
Bd1 {[%clk 0:02:48.3]} 25... Bxd1 {[%clk 0:03:18.1]} 26. Rxd1 {[%clk 0:02:47.1]}
26... a3 {[%clk 0:03:17.5]} 27. Ra1 {[%clk 0:02:42.3]} 27... Bxa1 {[%clk
0:03:15.1]} 28. Rh4 {[%clk 0:02:40]} 28... a2 {[%clk 0:03:13.5]} 29. Rxh6 {[%clk
0:02:34.1]} 29... Bg7 {[%clk 0:03:11.3]} 30. Rh4 {[%clk 0:02:31.7]} 30... a1=Q+
{[%clk 0:03:09]} 31. Kh2 {[%clk 0:02:31.2]} 31... Be5+ {[%clk 0:03:07.7]} 32. g3
{[%clk 0:02:28.5]} 32... Ra2# {[%clk 0:03:06.5]} 0-1

[Event "Live Chess"]
[Site "Chess.com"]
[Date "2023.05.21"]
[Round "-"]
[White "viktorskliarov"]
[Black "domrobson"]
[Result "1-0"]
[WhiteElo "2628"]
[BlackElo "1805"]
[TimeControl "300"]
[EndTime "8:58:49 PDT"]
[Termination "viktorskliarov won by resignation"]

1. e4 {[%clk 0:04:58.1]} 1... e5 {[%clk 0:04:59.5]} 2. Nc3 {[%clk 0:04:53.2]}
2... Nf6 {[%clk 0:04:58]} 3. f4 {[%clk 0:04:52]} 3... d5 {[%clk 0:04:57.6]} 4.
fxe5 {[%clk 0:04:51.4]} 4... Nxe4 {[%clk 0:04:56.9]} 5. Qf3 {[%clk 0:04:50.7]}
5... Nc6 {[%clk 0:04:56.4]} 6. Nxe4 {[%clk 0:04:46.2]} 6... Nd4 {[%clk
0:04:53.9]} 7. Qc3 {[%clk 0:03:41.9]} 7... dxe4 {[%clk 0:04:49.7]} 8. Ne2 {[%clk
0:03:40.9]} 8... c5 {[%clk 0:04:42]} 9. Ng3 {[%clk 0:03:05.5]} 9... Be7 {[%clk
0:04:20.2]} 10. a4 {[%clk 0:02:47.5]} 10... O-O {[%clk 0:04:18.4]} 11. Bc4
{[%clk 0:02:46]} 11... Bh4 {[%clk 0:04:14.4]} 12. O-O {[%clk 0:02:40.4]} 12...
Bxg3 {[%clk 0:04:08.2]} 13. hxg3 {[%clk 0:02:38.7]} 13... Be6 {[%clk 0:03:58.9]}
14. b3 {[%clk 0:02:29.2]} 14... Bxc4 {[%clk 0:03:53.9]} 15. Qxc4 {[%clk
0:02:26.6]} 15... Qb6 {[%clk 0:03:40.6]} 16. Ba3 {[%clk 0:02:15.6]} 16... Rac8
{[%clk 0:03:33.4]} 17. Rae1 {[%clk 0:02:13.3]} 17... Qg6 {[%clk 0:03:26.3]} 18.
Qc3 {[%clk 0:01:15.2]} 18... Nf3+ {[%clk 0:03:15.7]} 19. Rxf3 {[%clk 0:01:09.7]}
19... exf3 {[%clk 0:03:14.7]} 20. Qxf3 {[%clk 0:01:08.3]} 20... Qxc2 {[%clk
0:03:11.5]} 21. Qxb7 {[%clk 0:01:07]} 21... Qxd2 {[%clk 0:03:06.4]} 22. Re4
{[%clk 0:01:01.6]} 22... Qa2 {[%clk 0:02:53.8]} 23. Bc1 {[%clk 0:00:57.3]} 23...
Qb1 {[%clk 0:02:51.5]} 24. Re1 {[%clk 0:00:56.3]} 24... c4 {[%clk 0:02:39]} 25.
e6 {[%clk 0:00:48.6]} 25... fxe6 {[%clk 0:02:31.8]} 26. Kh2 {[%clk 0:00:47.1]}
26... Qxb3 {[%clk 0:02:29.1]} 27. Qxa7 {[%clk 0:00:45.1]} 27... Qc3 {[%clk
0:02:21.7]} 28. Rd1 {[%clk 0:00:40.7]} 28... Qc2 {[%clk 0:02:18.5]} 29. Rd7
{[%clk 0:00:37.9]} 29... Qg6 {[%clk 0:02:14.8]} 30. Bf4 {[%clk 0:00:37]} 30...
Rf7 {[%clk 0:02:05.1]} 31. Qb7 {[%clk 0:00:35.3]} 31... Re8 {[%clk 0:01:57.8]}
32. Rxf7 {[%clk 0:00:31.5]} 32... Qxf7 {[%clk 0:01:56.4]} 33. Qc6 {[%clk
0:00:31.2]} 33... e5 {[%clk 0:01:33.5]} 34. Be3 {[%clk 0:00:30.5]} 34... Qe6
{[%clk 0:01:30.6]} 35. Qc5 {[%clk 0:00:28.3]} 35... Rc8 {[%clk 0:01:28]} 36. Qb5
{[%clk 0:00:27.3]} 36... c3 {[%clk 0:01:27.2]} 37. a5 {[%clk 0:00:27]} 37... c2
{[%clk 0:01:26.2]} 38. Bc1 {[%clk 0:00:26.2]} 38... e4 {[%clk 0:01:22.6]} 39. a6
{[%clk 0:00:25.5]} 39... e3 {[%clk 0:01:17.8]} 40. a7 {[%clk 0:00:24.8]} 40...
e2 {[%clk 0:01:14.2]} 41. Qb8 {[%clk 0:00:23.8]} 41... e1=Q {[%clk 0:01:10.7]}
42. a8=Q {[%clk 0:00:23.4]} 42... Qh6+ {[%clk 0:01:05.7]} 43. Bxh6 {[%clk
0:00:21.6]} 43... c1=Q {[%clk 0:01:01.1]} 44. Bxc1 {[%clk 0:00:17.2]} 44... Rxb8
{[%clk 0:00:55.4]} 45. Qxb8+ {[%clk 0:00:16.3]} 45... Kf7 {[%clk 0:00:54.9]} 46.
Qc7+ {[%clk 0:00:15.9]} 46... Qe7 {[%clk 0:00:53.9]} 47. Qxe7+ {[%clk
0:00:13.7]} 47... Kxe7 {[%clk 0:00:52.6]} 48. Bb2 {[%clk 0:00:13.6]} 48... Kf7
{[%clk 0:00:52.1]} 49. Kh3 {[%clk 0:00:13.5]} 49... Kg6 {[%clk 0:00:51.4]} 50.
Kg4 {[%clk 0:00:13.4]} 50... Kh6 {[%clk 0:00:46.6]} 51. Kf4 {[%clk 0:00:13.3]}
51... Kg6 {[%clk 0:00:45.8]} 52. g4 {[%clk 0:00:13.2]} 52... Kh6 {[%clk
0:00:44.4]} 53. g5+ {[%clk 0:00:13]} 53... Kg6 {[%clk 0:00:43.8]} 54. g4 {[%clk
0:00:12]} 54... Kf7 {[%clk 0:00:41.7]} 55. Kf5 {[%clk 0:00:11.4]} 55... g6+
{[%clk 0:00:39.3]} 56. Ke5 {[%clk 0:00:11.1]} 56... Ke7 {[%clk 0:00:39.1]} 57.
Ba3+ {[%clk 0:00:10.1]} 57... Kf7 {[%clk 0:00:36.9]} 58. Kd6 {[%clk 0:00:09.8]}
58... Kg7 {[%clk 0:00:36.4]} 59. Ke6 {[%clk 0:00:09.3]} 59... h6 {[%clk
0:00:32.9]} 60. Bb2+ {[%clk 0:00:08.8]} 60... Kh7 {[%clk 0:00:31.8]} 61. gxh6
{[%clk 0:00:08.5]} 61... Kxh6 {[%clk 0:00:31]} 62. Kf6 {[%clk 0:00:08.3]} 62...
Kh7 {[%clk 0:00:28.4]} 63. g5 {[%clk 0:00:08]} 63... Kg8 {[%clk 0:00:27.5]} 64.
Kxg6 {[%clk 0:00:07.9]} 64... Kf8 {[%clk 0:00:27.2]} 65. Kf6 {[%clk 0:00:07.8]}
65... Ke8 {[%clk 0:00:26.4]} 66. g6 {[%clk 0:00:07.7]} 66... Kd7 {[%clk
0:00:26.2]} 67. g7 {[%clk 0:00:07.3]} 67... Kc6 {[%clk 0:00:26.1]} 68. g8=Q
{[%clk 0:00:06.8]} 68... Kb5 {[%clk 0:00:26]} 69. Qe6 {[%clk 0:00:06.7]} 1-0

[Event "Live Chess"]
[Site "Chess.com"]
[Date "2023.05.21"]
[Round "-"]
[White "LiamClery2020"]
[Black "seabuck"]
[Result "1/2-1/2"]
[WhiteElo "1994"]
[BlackElo "1896"]
[TimeControl "300"]
[EndTime "8:58:49 PDT"]
[Termination "Game drawn by agreement"]

1. e4 {[%clk 0:04:59.5]} 1... e6 {[%clk 0:04:57.5]} 2. c3 {[%clk 0:04:50.5]}
2... d5 {[%clk 0:04:53.1]} 3. e5 {[%clk 0:04:47.9]} 3... c5 {[%clk 0:04:51.8]}
4. Nf3 {[%clk 0:04:46.3]} 4... Nc6 {[%clk 0:04:50.6]} 5. d4 {[%clk 0:04:44.9]}
5... Bd7 {[%clk 0:04:49.1]} 6. Bd3 {[%clk 0:04:43.8]} 6... Rc8 {[%clk
0:04:47.3]} 7. Bf4 {[%clk 0:04:40]} 7... cxd4 {[%clk 0:04:45.6]} 8. cxd4 {[%clk
0:04:39.4]} 8... Nb4 {[%clk 0:04:44.5]} 9. Nc3 {[%clk 0:04:37.1]} 9... Nxd3+
{[%clk 0:04:42.7]} 10. Qxd3 {[%clk 0:04:37]} 10... Ne7 {[%clk 0:04:32.2]} 11.
O-O {[%clk 0:04:25]} 11... Qb6 {[%clk 0:04:27.5]} 12. b3 {[%clk 0:04:16.8]}
12... Nf5 {[%clk 0:04:20.5]} 13. Rac1 {[%clk 0:04:14.1]} 13... Qa5 {[%clk
0:04:02.2]} 14. a4 {[%clk 0:04:04.8]} 14... Bb4 {[%clk 0:03:52.2]} 15. Nb5
{[%clk 0:03:56.9]} 15... O-O {[%clk 0:03:39.1]} 16. Bd2 {[%clk 0:03:46.5]} 16...
Bxb5 {[%clk 0:03:30.1]} 17. axb5 {[%clk 0:03:40.6]} 17... Bxd2 {[%clk
0:03:23.6]} 18. Nxd2 {[%clk 0:03:38.9]} 18... Qb4 {[%clk 0:03:14.8]} 19. Nf3
{[%clk 0:03:34.6]} 19... h6 {[%clk 0:03:03]} 20. g4 {[%clk 0:03:28.4]} 20... Ne7
{[%clk 0:03:01.6]} 21. g5 {[%clk 0:03:25.7]} 1/2-1/2

[Event "Live Chess"]
[Site "Chess.com"]
[Date "2023.05.21"]
[Round "-"]
[White "ProfPoisson"]
[Black "JoshMcK"]
[Result "0-1"]
[WhiteElo "1212"]
[BlackElo "1561"]
[TimeControl "300"]
[EndTime "8:59:00 PDT"]
[Termination "JoshMcK won by resignation"]

1. e4 {[%clk 0:04:55.3]} 1... c6 {[%clk 0:04:58.2]} 2. d4 {[%clk 0:04:49.2]}
2... d5 {[%clk 0:04:57.6]} 3. exd5 {[%clk 0:04:43]} 3... cxd5 {[%clk 0:04:56]}
4. c4 {[%clk 0:04:41]} 4... Nf6 {[%clk 0:04:55.5]} 5. Nc3 {[%clk 0:04:37.1]}
5... dxc4 {[%clk 0:04:53.9]} 6. Bxc4 {[%clk 0:04:34.3]} 6... Nc6 {[%clk
0:04:51.9]} 7. Nf3 {[%clk 0:04:29.1]} 7... Bg4 {[%clk 0:04:46.7]} 8. Qb3 {[%clk
0:04:25.3]} 8... e6 {[%clk 0:04:35.2]} 9. Bg5 {[%clk 0:04:16.5]} 9... Bxf3
{[%clk 0:04:32.3]} 10. gxf3 {[%clk 0:04:13.1]} 10... Nxd4 {[%clk 0:04:31.3]} 11.
Qa4+ {[%clk 0:03:58.4]} 11... Qd7 {[%clk 0:04:25.9]} 12. Bb5 {[%clk 0:03:30.8]}
12... Nxb5 {[%clk 0:04:20.7]} 13. Nxb5 {[%clk 0:03:23.8]} 13... a6 {[%clk
0:04:19.7]} 14. Rd1 {[%clk 0:03:19]} 14... Qxb5 {[%clk 0:04:17.9]} 15. Qxb5+
{[%clk 0:02:59.9]} 15... axb5 {[%clk 0:04:17.8]} 16. O-O {[%clk 0:02:58.2]}
16... Be7 {[%clk 0:04:14.7]} 17. Rfe1 {[%clk 0:02:48.6]} 17... O-O {[%clk
0:04:13.1]} 18. Bxf6 {[%clk 0:02:44.6]} 18... Bxf6 {[%clk 0:04:11.8]} 19. Rd7
{[%clk 0:02:44.1]} 19... Rxa2 {[%clk 0:04:08.5]} 20. Rxb7 {[%clk 0:02:41.5]}
20... Rxb2 {[%clk 0:04:07.7]} 21. Kg2 {[%clk 0:02:34.7]} 21... Bd4 {[%clk
0:04:01.5]} 0-1

[Event "Live Chess"]
[Site "Chess.com"]
[Date "2023.05.21"]
[Round "-"]
[White "PiotrD11"]
[Black "1600x"]
[Result "1-0"]
[WhiteElo "1412"]
[BlackElo "1933"]
[TimeControl "300"]
[EndTime "8:59:01 PDT"]
[Termination "PiotrD11 won by resignation"]

1. e4 {[%clk 0:04:57.8]} 1... e6 {[%clk 0:04:59.9]} 2. d4 {[%clk 0:04:56]} 2...
Nf6 {[%clk 0:04:59.8]} 3. e5 {[%clk 0:04:54.5]} 3... d6 {[%clk 0:04:58.9]} 4.
exf6 {[%clk 0:04:53.2]} 4... gxf6 {[%clk 0:04:58.6]} 5. Nf3 {[%clk 0:04:51.5]}
5... f5 {[%clk 0:04:58.5]} 6. Be2 {[%clk 0:04:49.9]} 6... Qe7 {[%clk 0:04:58.4]}
7. O-O {[%clk 0:04:49.3]} 7... Bh6 {[%clk 0:04:58.3]} 8. Bxh6 {[%clk 0:04:47.1]}
8... c6 {[%clk 0:04:58.2]} 9. c3 {[%clk 0:04:45.4]} 9... d5 {[%clk 0:04:57.4]}
10. Ne5 {[%clk 0:04:42.8]} 10... Qd7 {[%clk 0:04:56.1]} 11. Nxd7 {[%clk
0:04:40.9]} 11... Bxd7 {[%clk 0:04:56]} 1-0

[Event "Live Chess"]
[Site "Chess.com"]
[Date "2023.05.21"]
[Round "-"]
[White "garyjc"]
[Black "whatnot126"]
[Result "0-1"]
[WhiteElo "1079"]
[BlackElo "2068"]
[TimeControl "300"]
[EndTime "8:59:02 PDT"]
[Termination "whatnot126 won by resignation"]

1. e4 {[%clk 0:04:58.6]} 1... d6 {[%clk 0:04:58]} 2. d4 {[%clk 0:04:57.1]} 2...
Nf6 {[%clk 0:04:50.4]} 3. Nc3 {[%clk 0:04:41.7]} 3... g6 {[%clk 0:04:48.3]} 4.
f4 {[%clk 0:04:40.5]} 4... Bg7 {[%clk 0:04:45.1]} 5. Nf3 {[%clk 0:04:32.4]} 5...
O-O {[%clk 0:04:40.5]} 6. Be2 {[%clk 0:04:21]} 6... c5 {[%clk 0:04:38.6]} 7.
dxc5 {[%clk 0:04:04.9]} 7... Qa5 {[%clk 0:04:37]} 8. Bd2 {[%clk 0:03:57.7]} 8...
Qxc5 {[%clk 0:04:36.1]} 9. Bd3 {[%clk 0:03:29.5]} 9... Na6 {[%clk 0:04:17.4]}
10. f5 {[%clk 0:03:28.2]} 10... e6 {[%clk 0:04:01.1]} 11. fxg6 {[%clk 0:03:27]}
11... fxg6 {[%clk 0:03:59.7]} 12. Ng5 {[%clk 0:03:20.2]} 12... h6 {[%clk
0:03:42.2]} 13. Nf3 {[%clk 0:03:14.4]} 13... d5 {[%clk 0:03:39.8]} 14. Ne5
{[%clk 0:03:10.5]} 14... dxe4 {[%clk 0:03:31.2]} 15. Nxe4 {[%clk 0:03:02.7]}
15... Nxe4 {[%clk 0:03:30]} 16. Qe2 {[%clk 0:02:32.9]} 16... Nxd2 {[%clk
0:03:22.5]} 17. Qxd2 {[%clk 0:02:29.6]} 17... Qxe5+ {[%clk 0:03:21.2]} 18. Be2
{[%clk 0:02:27.6]} 18... Qxb2 {[%clk 0:03:13.4]} 19. Rd1 {[%clk 0:02:20.3]}
19... Bc3 {[%clk 0:03:11.3]} 20. Qxc3 {[%clk 0:02:16.5]} 20... Qxc3+ {[%clk
0:03:11.2]} 0-1

[Event "Live Chess"]
[Site "Chess.com"]
[Date "2023.05.21"]
[Round "-"]
[White "ramses-IIG"]
[Black "HadesLearmonth"]
[Result "1-0"]
[WhiteElo "864"]
[BlackElo "1203"]
[TimeControl "300"]
[EndTime "8:59:07 PDT"]
[Termination "ramses-IIG won by checkmate"]

1. e4 {[%clk 0:04:58.1]} 1... e5 {[%clk 0:04:59]} 2. Nf3 {[%clk 0:04:58]} 2...
Nc6 {[%clk 0:04:55.9]} 3. Bc4 {[%clk 0:04:57.5]} 3... Nd4 {[%clk 0:04:53.9]} 4.
d3 {[%clk 0:04:57.4]} 4... Nxf3+ {[%clk 0:04:49.3]} 5. Qxf3 {[%clk 0:04:57.3]}
5... Nf6 {[%clk 0:04:47.3]} 6. O-O {[%clk 0:04:53.4]} 6... Be7 {[%clk
0:04:43.4]} 7. Bg5 {[%clk 0:04:52.4]} 7... d5 {[%clk 0:04:41.3]} 8. exd5 {[%clk
0:04:48.6]} 8... Nxd5 {[%clk 0:04:40.3]} 9. Bxe7 {[%clk 0:04:46.1]} 9... Nxe7
{[%clk 0:04:37.6]} 10. Qxf7+ {[%clk 0:04:43.9]} 10... Kd7 {[%clk 0:04:35.6]} 11.
Qxg7 {[%clk 0:04:33.4]} 11... c5 {[%clk 0:04:28.5]} 12. Qxe5 {[%clk 0:04:27.9]}
12... Ng6 {[%clk 0:04:22]} 13. Qxc5 {[%clk 0:04:20.4]} 13... b6 {[%clk
0:04:16.3]} 14. Qd5+ {[%clk 0:04:17.4]} 14... Kc7 {[%clk 0:04:13.6]} 15. Qxd8+
{[%clk 0:04:17.3]} 15... Rxd8 {[%clk 0:04:09.7]} 16. Nc3 {[%clk 0:04:15.2]}
16... Ne5 {[%clk 0:04:07.5]} 17. Bd5 {[%clk 0:04:09.1]} 17... Bb7 {[%clk
0:03:59.9]} 18. Bxb7 {[%clk 0:04:07.2]} 18... Kxb7 {[%clk 0:03:59.8]} 19. Rfe1
{[%clk 0:04:01.9]} 19... Ng4 {[%clk 0:03:55.7]} 20. Re7+ {[%clk 0:03:59.8]}
20... Ka6 {[%clk 0:03:53.6]} 21. Rxh7 {[%clk 0:03:55.5]} 21... Re8 {[%clk
0:03:50.8]} 22. f3 {[%clk 0:03:50.4]} 22... Nf6 {[%clk 0:03:46.7]} 23. Rf7
{[%clk 0:03:41]} 23... Nh5 {[%clk 0:03:40.8]} 24. Nd5 {[%clk 0:03:34.3]} 24...
Rad8 {[%clk 0:03:37.8]} 25. Nc7+ {[%clk 0:03:32.1]} 25... Ka5 {[%clk 0:03:29.9]}
26. Nxe8 {[%clk 0:03:32]} 26... Rxe8 {[%clk 0:03:29.2]} 27. Rxa7+ {[%clk
0:03:29.7]} 27... Kb5 {[%clk 0:03:24.5]} 28. Kf2 {[%clk 0:03:28.2]} 28... Nf6
{[%clk 0:03:22.5]} 29. a4+ {[%clk 0:03:22.4]} 29... Kc5 {[%clk 0:03:20.5]} 30.
c3 {[%clk 0:03:19.6]} 30... Nd5 {[%clk 0:03:19.2]} 31. b4+ {[%clk 0:03:18.3]}
31... Kd6 {[%clk 0:03:17.5]} 32. Rh7 {[%clk 0:03:13]} 32... Nxc3 {[%clk
0:03:16]} 33. Rc1 {[%clk 0:03:08.5]} 33... Re2+ {[%clk 0:03:14.8]} 34. Kg3
{[%clk 0:03:06.6]} 34... Nxa4 {[%clk 0:03:11.9]} 35. Rh6+ {[%clk 0:02:59.7]}
35... Kd5 {[%clk 0:03:10.6]} 36. h4 {[%clk 0:02:46]} 36... b5 {[%clk 0:03:07.2]}
37. Rh5+ {[%clk 0:02:40.1]} 37... Kd4 {[%clk 0:03:03.6]} 38. Rd1 {[%clk
0:02:33.7]} 38... Nc3 {[%clk 0:03:00.9]} 39. Ra1 {[%clk 0:02:22.6]} 39... Kxd3
{[%clk 0:02:59.2]} 40. f4 {[%clk 0:02:16.8]} 40... Re3+ {[%clk 0:02:57.2]} 41.
Kg4 {[%clk 0:02:14.4]} 41... Re2 {[%clk 0:02:54.8]} 42. g3 {[%clk 0:02:12.6]}
42... Kc4 {[%clk 0:02:49.2]} 43. f5 {[%clk 0:02:04]} 43... Ne4 {[%clk 0:02:44]}
44. Kf3 {[%clk 0:01:54.5]} 44... Rd2 {[%clk 0:02:23]} 45. Kxe4 {[%clk
0:01:52.2]} 45... Rd4+ {[%clk 0:02:21.5]} 46. Ke5 {[%clk 0:01:50.6]} 46... Kxb4
{[%clk 0:02:20.9]} 47. f6 {[%clk 0:01:48.3]} 47... Rd8 {[%clk 0:02:14.6]} 48. f7
{[%clk 0:01:47.2]} 48... Kc4 {[%clk 0:02:13.4]} 49. Ke6 {[%clk 0:01:46.2]} 49...
b4 {[%clk 0:02:12.7]} 50. Ke7 {[%clk 0:01:45.3]} 50... Rb8 {[%clk 0:02:11.8]}
51. f8=Q {[%clk 0:01:43.4]} 51... Rxf8 {[%clk 0:02:11.4]} 52. Kxf8 {[%clk
0:01:43]} 52... b3 {[%clk 0:02:10.9]} 53. Rb1 {[%clk 0:01:38.6]} 53... Kc3
{[%clk 0:02:09.6]} 54. Rf5 {[%clk 0:01:37.6]} 54... Kc2 {[%clk 0:02:08.9]} 55.
Rff1 {[%clk 0:01:36.5]} 55... b2 {[%clk 0:02:08.2]} 56. h5 {[%clk 0:01:34.1]}
56... Kb3 {[%clk 0:02:07.1]} 57. h6 {[%clk 0:01:34]} 57... Ka2 {[%clk
0:02:06.3]} 58. h7 {[%clk 0:01:33.9]} 58... Kb3 {[%clk 0:02:05.2]} 59. h8=Q
{[%clk 0:01:33.8]} 59... Ka2 {[%clk 0:02:04.7]} 60. g4 {[%clk 0:01:32.2]} 60...
Ka3 {[%clk 0:02:03.1]} 61. g5 {[%clk 0:01:32.1]} 61... Ka4 {[%clk 0:02:02.6]}
62. g6 {[%clk 0:01:32]} 62... Ka5 {[%clk 0:02:02.1]} 63. g7 {[%clk 0:01:31.9]}
63... Kb5 {[%clk 0:02:01]} 64. g8=Q {[%clk 0:01:31.8]} 64... Kc6 {[%clk
0:02:00]} 65. Qh6+ {[%clk 0:01:29.7]} 65... Kd7 {[%clk 0:01:58.9]} 66. Qd5+
{[%clk 0:01:26.4]} 66... Kc7 {[%clk 0:01:57.9]} 67. Qhc6+ {[%clk 0:01:22.1]}
67... Kb8 {[%clk 0:01:56.8]} 68. Rxb2+ {[%clk 0:01:19.9]} 68... Ka7 {[%clk
0:01:55.5]} 69. Rf7# {[%clk 0:01:16.9]} 1-0